Cogmind - Beta 13 @@@ ROGUE MODE // 2024.05.28 @ 11:26:46 Player: kikul Result: Destroyed by G-47 Trooper with Particle Gun Performance ------------- Evolutions (2) 1000 Regions Visited (4) 800 Robots Destroyed (24) 120 Value Destroyed (523) 523 Prototype IDs (0) 0 Alien Tech Used (0) 0 Bonus (0) 0 TOTAL SCORE: 2443 Bonus ------- None Cogmind --------- Core Integrity 0/550 Matter 223/300 Energy 100/100 System Corruption 11% Temperature Cool (9) Movement Core (50) Location -8/Materials Parts ------- > --- POWER (1) -------- (None) > --- PROPULSION (4) --- (None) > --- UTILITY (2) ------ (None) > --- WEAPON (4) ------- (None) > --- INVENTORY (5) ---- Improved Ion Engine Cooling System Small Storage Unit Visual Processing Unit Signal Interpreter Peak State ------------ > --- POWER ------------ Ion Engine > --- PROPULSION ------- Light Treads Light Treads Light Treads Light Treads > --- UTILITY ---------- Small Storage Unit Sensor Array > --- WEAPON ----------- Assault Rifle Light Assault Rifle Autogun > --- INVENTORY -------- Improved Ion Engine Light Treads Cooling System Small Storage Unit Visual Processing Unit Signal Interpreter Light Assault Rifle [Rating: 12] Favorites ----------- Power Ion Engine Engine Ion Engine Propulsion Aluminum Leg Treads Light Treads Leg Aluminum Leg Utility Small Storage Unit Device Sensor Array Storage Small Storage Unit Weapon Small Laser Energy Gun Small Laser Ballistic Gun Light Assault Rifle Impact Weapon Hammer Build | -11 -10 -10 -9 -8 ------- Run | Yrd Mat Min Mat Mat Slots Evolved 4 | . . . 2 2 Power . | . . . . . Propulsion 2 | . . . 2 . Utility . | . . . . . Weapon 2 | . . . . 2 Parts Attached 35 | 6 13 . 11 5 Power 3 | 1 . . 1 1 Engine 3 | 1 . . 1 1 Core . | . . . . . Reactor . | . . . . . Propulsion 14 | 2 6 . 5 1 Treads 8 | . 2 . 5 1 Leg 6 | 2 4 . . . Wheel . | . . . . . Hover . | . . . . . Flight . | . . . . . Utility 5 | 1 2 . 2 . Device 3 | . 2 . 1 . Storage 2 | 1 . . 1 . Processor . | . . . . . Hackware . | . . . . . Protection . | . . . . . Artifact . | . . . . . Weapon 13 | 2 5 . 3 3 Energy Gun 3 | . 3 . . . Energy Cannon . | . . . . . Ballistic Gun 9 | 2 2 . 3 2 Ballistic Cannon . | . . . . . Launcher . | . . . . . Special Weapon . | . . . . . Impact Weapon 1 | . . . . 1 Slashing Weapon . | . . . . . Piercing Weapon . | . . . . . Special Melee Weapon . | . . . . . Unidentified Prototypes . | . . . . . Parts Lost 16 | . . 1 1 14 Power 2 | . . . . 2 Propulsion 7 | . . 1 1 5 Utility 2 | . . . . 2 Weapon 5 | . . . . 5 Highest Loss Streak 14 | . . 1 1 14 To Critical Strikes . | . . . . . Average Slot Usage (%) 79 | . 84 79 86 52 Engine 6 | . 10 . 6 6 Treads 11 | . . . 32 16 Leg 15 | . 25 22 2 . Device 8 | . 6 14 11 3 Storage 12 | . 14 14 11 6 Energy Gun 10 | . 6 28 5 . Ballistic Gun 14 | . 20 . 16 17 Naked Turns 13 | . . . . 13 Heaviest Build 18 | 13 13 8 16 18 Greatest Support 80 | 20 20 20 80 80 Greatest Overweight (x) 5 | 3 1 . . 5 Average Overweight (x) . | . . . . . Largest Inventory Capacity 8 | 8 8 8 8 8 Average Capacity 7 | 7 8 8 8 7 Most Carried 8 | 4 8 8 8 7 Average Carried 6 | 2 7 8 7 5 Final Capacity 8 | 8 8 8 8 5 Final Carried 8 | 4 8 8 8 5 Class Distribution -------------------- 94% | Mutant 4% | Skirmisher Dominant Class ---------------- Mutant | -10/Materials Mutant | -10/Mines Mutant | -9/Materials Mutant | -8/Materials Resources | -11 -10 -10 -9 -8 ----------- Run | Yrd Mat Min Mat Mat Matter Collected 676 | 239 179 22 135 101 Remotely . | . . . . . Salvage Created 728 | . 165 152 189 222 Parts 53 | . 20 9 19 5 Haulers Intercepted . | . . . . . Recyclers Shooed 1 | . 1 . . . Parts Field Recycled . | . . . . . Retrieved Matter . | . . . . . Parts Self-Destructed . | . . . . . Prevented . | . . . . . Kills | -11 -10 -10 -9 -8 ------- Run | Yrd Mat Min Mat Mat Combat Hostiles Destroyed 21 | . 8 5 5 3 Melee 1 | . . . . 1 Guns 20 | . 8 5 5 2 Classes Destroyed 7 | . 3 1 1 2 Worker 1 | . . 1 . . Recycler 1 | . . . . 1 Watcher 1 | . 1 . . . Swarmer 12 | . 7 3 2 . Grunt 5 | . 1 2 . 2 Brawler 1 | . . . . 1 Sentry 3 | . . . 3 . Best Kill Streak 5 | . 4 5 3 2 Combat Bots Only 5 | . 4 5 3 1 Max Kills in Single Turn 2 | . 1 2 1 1 Gunslinging 1 | . . 1 . . Exploded . | . . . . . Melee 1 | . . . . 1 Uniques/NPCs Destroyed . | . . . . . Combat | -11 -10 -10 -9 -8 -------- Run | Yrd Mat Min Mat Mat Hostile Shots Fired 293 | . 67 40 48 138 Missed 65 | . 17 12 13 23 Damage Taken 2999 | . 428 298 429 1844 Core 816 | . 51 132 79 554 Absorbed by Shields . | . . . . . Regen/Repaired (Parts) 83 | . 83 . . . Core Remaining (%) 68 | 100 . 26 80 . Volleys Fired 89 | . 36 14 20 19 Largest 4 | . 2 2 2 4 Hottest 83 | . 80 80 80 83 Shots Fired 193 | . 72 28 31 62 Gun 193 | . 72 28 31 62 Cannon . | . . . . . Launcher . | . . . . . Special . | . . . . . Kinetic 142 | . 54 . 26 62 Thermal 51 | . 18 28 5 . Explosive . | . . . . . Electromagnetic . | . . . . . Robot Hit Streak 8 | . 5 8 8 7 Robot Miss Streak 4 | . 4 2 2 3 Penetration Max . | . . . . . Secondary Targets 5 | . 1 3 . 1 Max Gunslinging Chain 1 | . 1 1 . 1 Shots Hit Robots 121 | . 37 18 21 45 Core Hits 45 | . 14 9 9 13 Critical Kills 1 | . . . . 1 Critical Parts Destroyed 2 | . 1 . . 1 Critical Strikes 3 | . 1 . . 2 Destroy 1 | . 1 . . . Smash 2 | . . . . 2 Melee Attacks 5 | . . . . 5 Impact 5 | . . . . 5 Slashing . | . . . . . Piercing . | . . . . . Sneak Attacks . | . . . . . Combat Hostiles . | . . . . . Follow-up Attacks . | . . . . . Damage Inflicted 1373 | . 322 204 264 583 Guns 1240 | . 322 204 264 450 Cannons . | . . . . . Explosions . | . . . . . Melee 133 | . . . . 133 Ramming . | . . . . . Kinetic 930 | . 228 . 252 450 Thermal 310 | . 94 204 12 . Explosive . | . . . . . Electromagnetic . | . . . . . Impact 133 | . . . . 133 Slashing . | . . . . . Piercing . | . . . . . Highest Corruption 11 | . 1 1 . 11 Average Corruption 3 | . 1 1 . 10 Corruption Purged . | . . . . . Corruption Blocked . | . . . . . Effects 6 | . . 1 . 5 Message Errors 1 | . . 1 . . Heat Flow Errors 2 | . . . . 2 Data Loss (minor) 1 | . . . . 1 Misdirections 2 | . . . . 2 Overload Shots . | . . . . . Overflow Damage 23 | . . . . 23 Projectiles . | . . . . . Explosions . | . . . . . Melee 23 | . . . . 23 Knockbacks . | . . . . . Impact . | . . . . . Kinetic . | . . . . . Secondary . | . . . . . Self-Inflicted Damage . | . . . . . Shots . | . . . . . Rammed . | . . . . . Targets Rammed . | . . . . . Kicked . | . . . . . Crushed . | . . . . . Highest Temperature 368 | . 39 108 8 368 Average Temperature 112 | . 16 38 6 183 Received Heat Transfer 1362 | . 48 90 117 1107 Effects 3 | . . . . 3 Energy Bleed 1 | . . . . 1 Matter Decay 1 | . . . . 1 Short Circuit 1 | . . . . 1 Siege Activations . | . . . . . Robots Corrupted . | . . . . . Combat Hostiles . | . . . . . Parts Fried 2 | . . . . 2 Impact Corruptions 1 | . . . . 1 Robots Melted . | . . . . . Combat Hostiles . | . . . . . Parts Melted 1 | . 1 . . . Heat Transferred 700 | . 225 450 25 . Parts Sabotaged . | . . . . . Parts Stolen . | . . . . . Parts Stripped . | . . . . . Power Chain Reactions . | . . . . . Alert | -11 -10 -10 -9 -8 ------- Run | Yrd Mat Min Mat Mat Peak Influence 295 | . 295 168 245 68 Initial 65 | . . 53 65 18 Average 126 | . 173 106 151 21 Maximum Alert Level 1 | . 1 . 1 . Low Security (%) 77 | 100 52 100 76 100 Level 1 22 | . 47 . 23 . Level 2 . | . . . . . Level 3 . | . . . . . Level 4 . | . . . . . Level 5 . | . . . . . High Security . | . . . . . Max Security . | . . . . . Squads Dispatched 2 | . 1 . . 1 Investigation 1 | . . . . 1 Extermination . | . . . . . Reinforcement 1 | . 1 . . . Assault . | . . . . . Garrison . | . . . . . Intercept . | . . . . . Searches Triggered . | . . . . . Construction Impeded . | . . . . . Haulers Reinforced . | . . . . . Active Scanning Responses . | . . . . . Cargo Convoy Interrupts . | . . . . . Stealth | -11 -10 -10 -9 -8 --------- Run | Yrd Mat Min Mat Mat Distress Signals 4 | . 2 . 1 1 Communications Jammed . | . . . . . Distress Signals . | . . . . . Times Spotted 41 | . 18 5 11 7 Peak Tracking Total 8 | . 6 4 8 4 Tactical Retreats 5 | . 4 . 1 . Traps | -11 -10 -10 -9 -8 ------- Run | Yrd Mat Min Mat Mat Traps Triggered 3 | . 3 . . . Indirectly . | . . . . . Trap Hack Attempts . | . . . . . Triggered . | . . . . . Disarmed . | . . . . . Reprogrammed . | . . . . . Reused . | . . . . . Traps Extracted . | . . . . . Installed . | . . . . . Triggered . | . . . . . Machines | -11 -10 -10 -9 -8 ---------- Run | Yrd Mat Min Mat Mat Machines Disabled . | . . . . . Max in Single Turn . | . . . . . Machines Repaired . | . . . . . Machines Dismantled . | . . . . . Machines Sabotaged . | . . . . . Overloaded Fab Kills . | . . . . . Hacking | -11 -10 -10 -9 -8 --------- Run | Yrd Mat Min Mat Mat Machines Accessed 2 | . 1 . . 1 Terminals 1 | . . . . 1 Fabricators . | . . . . . Repair Stations 1 | . 1 . . . Recycling Units . | . . . . . Scanalyzers . | . . . . . Garrison Access . | . . . . . Total Hacks 7 | . 3 . . 4 Successful 7 | . 3 . . 4 Failed . | . . . . . Catastrophic . | . . . . . Database Lockouts . | . . . . . Manual . | . . . . . Terminals 4 | . . . . 4 Fabricators . | . . . . . Repair Stations 3 | . 3 . . . Recycling Units . | . . . . . Scanalyzers . | . . . . . Garrison Access . | . . . . . Terminal Hacks 4 | . . . . 4 Record 3 | . . . . 3 Alert Level 1 | . . . . 1 Fabricator Hacks . | . . . . . Repair Station Hacks 3 | . 3 . . . Scan Component 2 | . 2 . . . Repair 1 | . 1 . . . Recycling Unit Hacks . | . . . . . Scanalyzer . | . . . . . Garrison Access Hacks . | . . . . . Unauthorized Hacks . | . . . . . Terminals . | . . . . . Fabricators . | . . . . . Repair Stations . | . . . . . Recycling Units . | . . . . . Scanalyzers . | . . . . . Garrison Access . | . . . . . Data Cores Recovered . | . . . . . Used . | . . . . . Hacking Detections 2 | . 1 . . 1 Full Trace Events 2 | . 1 . . 1 Feedback Events . | . . . . . Feedback Blocked . | . . . . . Robot Schematics Acquired . | . . . . . Robots Built . | . . . . . Authchips . | . . . . . Time . | . . . . . Total Robot Build Rating . | . . . . . Part Schematics Acquired . | . . . . . Parts Built . | . . . . . Authchips . | . . . . . Time . | . . . . . Total Part Build Rating . | . . . . . Parts Repaired 1 | . 1 . . . Time 26 | . 26 . . . Parts Recycled . | . . . . . Recycled Matter . | . . . . . Retrieved Matter . | . . . . . Retrieved Components . | . . . . . Parts Scanalyzed . | . . . . . Part Schematics Acquired . | . . . . . Parts Damaged . | . . . . . Bothacking | -11 -10 -10 -9 -8 ------------ Run | Yrd Mat Min Mat Mat Used RIF Installer . | . . . . . Robots Hacked . | . . . . . Non-combat . | . . . . . Combat . | . . . . . Robot Hacks Applied . | . . . . . Relay Couplers Released . | . . . . . Fabnet Peak Effective % . | . . . . . Robots Rewired . | . . . . . Allies Hacked . | . . . . . Hacks Repelled . | . . . . . Allies | -11 -10 -10 -9 -8 -------- Run | Yrd Mat Min Mat Mat Total Allies . | . . . . . Largest Group . | . . . . . Highest-Rated Group . | . . . . . Highest-Rated Ally . | . . . . . Total Orders . | . . . . . Ally Attacks . | . . . . . Total Damage . | . . . . . Kills . | . . . . . Allies Corrupted . | . . . . . Allies Melted . | . . . . . Intel | -11 -10 -10 -9 -8 ------- Run | Yrd Mat Min Mat Mat Robot Analysis Total . | . . . . . Derelict Logs Recovered . | . . . . . Drone Launches . | . . . . . Drone Recoveries . | . . . . . Exploration | -11 -10 -10 -9 -8 ------------- Run | Yrd Mat Min Mat Mat Turns Passed 1534 | 71 535 326 409 193 Spaces Moved 824 | 44 268 237 201 74 Core 51 | 13 . . . 38 Treads 237 | . . . 201 36 Legs 536 | 31 268 237 . . Wheels . | . . . . . Hover . | . . . . . Flight . | . . . . . Fastest Speed 50 | 50 120 120 160 50 Average Speed 133 | 132 120 120 160 146 Slowest Speed 300 | 200 190 120 160 300 Overloaded Moves . | . . . . . Propulsion Burnouts . | . . . . . Robots Hopped . | . . . . . Cave-ins Triggered . | . . . . . Exploration Rate (%) 24 | 4 32 58 17 10 Regions Visited 4 Branch Regions 1 Pre-discovered Areas . | . . . . . Known Exits Taken . | . . . . . Unknown Exits Taken 4 | 1 1 1 1 . Scrap Searched 1 | . . 1 . . Spaces Dug . | . . . . . Terrain Destroyed . | . . . . . Melee . | . . . . . Projectile . | . . . . . AOE . | . . . . . Terrain Rammed . | . . . . . Walls Destroyed . | . . . . . Machines Disabled . | . . . . . Actions | -11 -10 -10 -9 -8 --------- Run | Yrd Mat Min Mat Mat Total 1097 | 53 418 250 261 115 Wait 111 | . 87 . 12 12 Move 820 | 43 267 236 200 74 Hop . | . . . . . Pick Up 24 | 4 11 . 9 . Fast Attach 12 | 6 1 . 3 2 Attach 15 | . 7 . 5 3 Detach 1 | . 1 . . . Swap 8 | . 5 . 3 . Drop 12 | . 3 . 9 . Fire 89 | . 36 14 20 19 Melee 5 | . . . . 5 Ram . | . . . . . Kick . | . . . . . Crush . | . . . . . Escape Stasis . | . . . . . Rewire . | . . . . . Trap . | . . . . . Miscellaneous . | . . . . . Route ------- -11/Scrapyard -10/Materials -10/Mines -9/Materials -8/Materials History --------- Turn | Location | Event 24 | -11/Scrapyard | Discovered new exit (range 15) 72 | -11/Scrapyard | Entered Materials 318 | -10/Materials | Build established: Mutant 340 | -10/Materials | Repaired Aluminum Leg 567 | -10/Materials | Discovered new exit (range 13) 607 | -10/Materials | Entered Mines 788 | -10/Mines | Core integrity fell below 50% 916 | -10/Mines | Discovered new exit (range 6) 933 | -10/Mines | Entered Materials 933 | -9/Materials | Evolved 2 slots: Propulsion x2 1292 | -9/Materials | Discovered new exit (range 12) 1342 | -9/Materials | Entered another Materials area 1342 | -8/Materials | Evolved 2 slots: Weapon x2 1428 | -8/Materials | System corruption reached 10% 1459 | -8/Materials | Core integrity fell below 50% 1484 | -8/Materials | Core integrity fell below 20% 1535 | -8/Materials | Destroyed by G-47 Trooper with Particle Gun Last Messages --------------- (Smash). 01502_ Destroyed Lgt. Nuclear Core. 01502_ G-47 Trooper system corrupted by crushing effect. 01504_ G-47 Trooper IFF system glitched. 01506_ K-01 Serf collects debris. 01506_ G-47 Trooper IFF system glitched. 01507_ G-47 Trooper suffers critical hit (Smash). 01507_ Imp. Heat Sink fried. 01507_ Particle Gun fried. 01507_ G-47 Trooper destroyed. 01510_ M-13 Machinist repairs G-47 Trooper. 01511_ K-01 Serf collects debris. 01513_ Hammer destroyed. 01514_ K-01 Serf collects debris. 01518_ R-06 Scavenger collects Corrupted Aluminum Leg. 01522_ Rnf. Ion Engine destroyed. 01526_ K-01 Serf collects debris. Map ----- +----------------------------------------------------+ | ???????????????????????????????????????????????? | | ???????????????????????????????????????????????? | | ???????????????????????????????????????????????? | | ???????????????????????????????????????????????? | | ???????????????????????????????????????????????? | | ???????????????????????????????????????????????? | | ???????????????????????????????????????????????? | | ???????????????????????????????????????????????? | | ????????????????? ? ?????????????????????????? | | ????????????????+ ???????????????????????? | | ????????????????# " ?????????????????????? | | ??????? ????????#^ T ????????????????????? | | ??????? ######## " ???????????????????? | | ???????? # ^ ???????????????????? | | ?????????+ ???? ??"???????????? | | ?????????# ?? "???????????? | | ?????????# ? T???????????? | | ?????????# "???????????? | | ?????????# """ """ "#??????????? | | ????????## """""""""r "#??????????? | | ????????# % """"" " ###?????????? | | ????????# ????????? | | ????????+ % ????????? | | ????????# % ????????? | | ????????# ###/######g#######???????????????? | | ????????# # # @ #??????????????????? | | ????????# # ! """# #??????????????????? | | ????????# # """# #??????????????????? | | ????????# #! """# "T" #??????????????????? | | ????????# # """# """ #??????????????????? | | ????????# # # #??????????????????? | | ?????#### ###############??????????????????? | | ?????# #????????????????????????????????? | | ?????# #????????????????????????????????? | | ?????# #????????????????????????????????? | | ?????###T######????????????????????????????????? | | ???????###?????????????????????????????????????? | | ???????????????????????????????????????????????? | | ???????????????????????????????????????????????? | | ???????????????????????????????????????????????? | | ???????????????????????????????????????????????? | | ???????????????????????????????????????????????? | | ???????????????????????????????????????????????? | | ???????????????????????????????????????????????? | | ???????????????????????????????????????????????? | | ???????????????????????????????????????????????? | | ???????????????????????????????????????????????? | | ???????????????????????????????????????????????? | | ???????????????????????????????????????????????? | | ???????????????????????????????????????????????? | +----------------------------------------------------+ Best States ------------- Heat Dissipation 31 Energy Generation 12 Energy Capacity 265 Matter Stores 300 Matter Capacity 300 Sight Range 16 Robot Scan Range 14 Terrain Scan Density 10 Evasion (%) 55 Recoil Reduction 4 Item Schematics ----------------- None Robot Schematics ------------------ None Fabricated ------------ Nothing Alien Tech Used ----------------- None Achievements -------------- System Compromised Challenges ------------ None Game ------ Seed CoilMultitargetingPit Manual? 0 Play Time 00:27:08 Cumulative 6.3 hours Start 2024.05.28 @ 10:58:00 End 2024.05.28 @ 11:26:46 Sessions 1 Manual Loads 0 Difficulty Rogue Special Mode None Game No. 11 Rogue 11 Adventurer 0 Explorer 0 Win Type - Total 0 Types 0/0/0/0/0/0/0/0/0 Lore% 2 Gallery% 8 Achievement% 7 Wizard Run 0 Options --------- Layout 1 ASCII 0 Keyboard 0 Movement Mouse Keybinds 0 Fullscreen 1 Font 32/SmallcapsGlow Map View 50x35 Zoom Use 0% Tactical HUD 1 Map Filters NONE Filters NONE Steam 1 RUN: a861cf3d-66cc-4ed4-bd39-54970d84dee3